[Event "European Amateur Chess-ch 2022"]
[Site "Zagreb"]
[Date "2022.08.14"]
[Round "1.19"]
[White "Lasic, Luka"]
[Black "Dzaja, Martin Zorislav"]
[Result "0-1"]
[ECO "E05"]
[WhiteElo "2077"]
[BlackElo "1974"]
[Annotator "NA RC"]
[PlyCount "120"]
[EventDate "2022.08.14"]
[EventCountry "CRO"]
[SourceTitle "playchess.com"]
[Source "ChessBase"]
[SourceQuality "1"]
[TimeControl "40/5400+30:1800+30"]

1. Nf3 d5 2. c4 e6 3. g3 Nf6 4. Bg2 Be7 5. O-O O-O 6. d4 dxc4 7. Qc2 a6 8. Qxc4 b5 9. Qc2 Bb7 10. Bg5 Nbd7 11. Nbd2 Rc8 12. Rac1 c5 13. dxc5 Rxc5 14. Qb1 Qa8 15. Rxc5 Nxc5 16. Rc1 Nce4 17. Nxe4 Bxe4 18. Qa1 h6 19. Bd2 Rd8 20. Ba5 Rd5 21. a3 Bc5 22. h3 Nh5 23. e3 Nxg3 24. fxg3 Bxe3+ 25. Kh2 Bxc1 26. Qxc1 Rf5 27. Nh4 Rf2 28. Kg1 Rxg2+ 29. Nxg2 Bxg2 30. Kh2 Qf3 31. Qd2 Bf1 32. Bb6 Bc4 33. Qf2 Qd1 34. Qg1 Qc2+ 35. Qf2 Qe4 36. Qe3 Qf5 37. Qf2 Qh5 38. Bd4 e5 39. g4 Qg5 40. Be3 Qg6 41. Ba7 h5 42. Qg2 hxg4 43. hxg4 Be6 44. g5 Qh5+ 45. Kg1 Qd1+ 46. Kh2 Bd5 47. Qh3 Qd2+ 48. Kg1 Qxg5+ 49. Kf2 Qf4+ 50. Ke2 Be6 51. Qc3 Qc4+ 52. Ke3 Qxc3+ 53. bxc3 Bd5 54. Bb8 f6 55. a4 bxa4 56. Bd6 Kf7 57. Kd3 Ke6 58. Bf8 g5 59. c4 Bc6 60. Ke3 g4 0-1

[Event "European Amateur Chess-ch 2022"]
[Site "Zagreb"]
[Date "2022.08.14"]
[Round "1.20"]
[White "Colev, Ivor"]
[Black "Janiszewski, Maciej"]
[Result "1-0"]
[ECO "B35"]
[WhiteElo "1950"]
[BlackElo "2075"]
[Annotator "NA RC"]
[PlyCount "115"]
[EventDate "2022.08.14"]
[EventCountry "CRO"]
[SourceTitle "playchess.com"]
[Source "ChessBase"]
[SourceQuality "1"]
[TimeControl "40/5400+30:1800+30"]

1. e4 c5 2. Nf3 Nc6 3. d4 cxd4 4. Nxd4 g6 5. Nc3 Bg7 6. Be3 Nf6 7. Bc4 O-O 8. f3 Qb6 9. O-O Qxb2 10. Ncb5 Qb4 11. Bb3 Nxd4 12. Nxd4 d6 13. Rb1 Qc3 14. Qd3 Qxd3 15. cxd3 Bd7 16. Rfc1 Rfc8 17. Bc4 Rab8 18. Nb5 a6 19. Na7 Rf8 20. Rb6 Ba4 21. Rcb1 d5 22. exd5 Rbd8 23. d6 exd6 24. Rxb7 d5 25. Bxa6 d4 26. Bg5 Rd5 27. Bxf6 Bxf6 28. Bc4 Ra5 29. Nb5 Be5 30. g3 g5 31. Re7 Bb8 32. Rb7 Kg7 33. Nc7 Bxc7 34. Rxc7 Kg6 35. Rbb7 Rf5 36. Rb6+ Kg7 37. Rd6 Rxf3 38. Rxd4 Bd1 39. Rdd7 h5 40. Re7 g4 41. Re1 Ba4 42. Rf1 Rxf1+ 43. Kxf1 Kg6 44. Ra7 Bd1 45. Bd5 f5 46. Ke1 Bf3 47. Bxf3 gxf3 48. Kf2 f4 49. Kxf3 fxg3+ 50. Kxg3 Rd8 51. Ra3 Rd4 52. Rb3 Kg5 53. Kf3 Kh4 54. Ke3 Rg4 55. Rb2 Kh3 56. d4 Rg1 57. Rd2 Kg4 58. d5 1-0

[Event "European Amateur Chess-ch 2022"]
[Site "Zagreb"]
[Date "2022.08.14"]
[Round "1.21"]
[White "Vukic, Aleksandar"]
[Black "Baric, Marko"]
[Result "1-0"]
[ECO "E46"]
[WhiteElo "2073"]
[BlackElo "1948"]
[Annotator "NA RC"]
[PlyCount "101"]
[EventDate "2022.08.14"]
[EventCountry "CRO"]
[SourceTitle "playchess.com"]
[Source "ChessBase"]
[SourceQuality "1"]
[TimeControl "40/5400+30:1800+30"]

1. d4 Nf6 2. c4 e6 3. Nc3 Bb4 4. e3 O-O 5. Nge2 d5 6. a3 Be7 7. Nf4 c6 8. Qc2 Nbd7 9. cxd5 cxd5 10. Bd3 Re8 11. O-O b6 12. Bd2 Bb7 13. Rfc1 Rc8 14. Qb3 a6 15. a4 Ne4 16. Nxe4 Rxc1+ 17. Rxc1 dxe4 18. Bc4 Nf6 19. Bb4 Bd6 20. Bxd6 Qxd6 21. Rc3 g5 22. Ne2 Bd5 23. Qc2 Bxc4 24. Rxc4 b5 25. axb5 axb5 26. Rc5 h6 27. Rxb5 Ra8 28. g3 Ra1+ 29. Kg2 Qa6 30. Qc4 Kg7 31. Nc3 Qa8 32. Rc5 Rc1 33. Qa4 Qb7 34. b4 Kg6 35. Qa3 Re1 36. b5 h5 37. Qa5 h4 38. b6 Qb8 39. Rxg5+ Kh7 40. Qe5 Qxe5 41. Rxe5 Rc1 42. Rc5 Nd7 43. b7 hxg3 44. hxg3 Kg6 45. Rc7 Nb8 46. Rc8 Nd7 47. Nxe4 Rb1 48. Rc7 Nb8 49. Nc5 Rb2 50. Kf3 Kf6 51. Rc8 1-0

[Event "European Amateur Chess-ch 2022"]
[Site "Zagreb"]
[Date "2022.08.14"]
[Round "1.22"]
[White "Pal, Rohan"]
[Black "Horvat, Damjan"]
[Result "1/2-1/2"]
[ECO "B55"]
[WhiteElo "1935"]
[BlackElo "2072"]
[Annotator "NA RC"]
[PlyCount "75"]
[EventDate "2022.08.14"]
[EventCountry "CRO"]
[SourceTitle "playchess.com"]
[Source "ChessBase"]
[SourceQuality "1"]
[TimeControl "40/5400+30:1800+30"]

1. e4 c5 2. Nf3 d6 3. d4 cxd4 4. Nxd4 Nf6 5. f3 e5 6. Nb3 d5 7. Bg5 Be6 8. Bxf6 gxf6 9. exd5 Qxd5 10. Qxd5 Bxd5 11. Nc3 Bb4 12. O-O-O Bxb3 13. axb3 Bxc3 14. bxc3 Ke7 15. Bc4 Nc6 16. Rd5 Rad8 17. Rhd1 Rxd5 18. Rxd5 h5 19. Rb5 b6 20. Rd5 h4 21. Rd2 Rd8 22. Bb5 Rd6 23. Re2 f5 24. Bxc6 Rxc6 25. Rxe5+ Kf6 26. Re3 f4 27. Re4 Kf5 28. Re7 Kf6 29. Rxa7 h3 30. gxh3 Rxc3 31. Ra6 Rxf3 32. Rxb6+ Ke5 33. Rb7 f5 34. Re7+ Kd4 35. Kd2 Rxh3 36. c3+ Kd5 37. Re2 f3 38. Re1 1/2-1/2

[Event "European Amateur Chess-ch 2022"]
[Site "Zagreb"]
[Date "2022.08.14"]
[Round "1.23"]
[White "Jonsson, Gauti Pall"]
[Black "Starcevic, Danijel"]
[Result "1-0"]
[ECO "A11"]
[WhiteElo "2071"]
[BlackElo "1935"]
[Annotator "NA RC"]
[PlyCount "107"]
[EventDate "2022.08.14"]
[EventCountry "CRO"]
[SourceTitle "playchess.com"]
[Source "ChessBase"]
[SourceQuality "1"]
[TimeControl "40/5400+30:1800+30"]

1. Nf3 Nf6 2. g3 g6 3. b3 Bg7 4. Bb2 O-O 5. Bg2 d5 6. c4 c6 7. O-O Na6 8. d3 Be6 9. Nbd2 Qb6 10. Rc1 Bh6 11. c5 Qc7 12. h4 Nd7 13. d4 Bf5 14. h5 Nf6 15. hxg6 hxg6 16. Ne5 Qa5 17. Bc3 Qd8 18. e3 Nc7 19. g4 Bc8 20. f4 Nd7 21. Nd3 Nb5 22. Bb2 Bg7 23. Bf3 a5 24. a4 Nc7 25. Kg2 Re8 26. Rh1 Nf8 27. Rh3 Na6 28. Qh1 b6 29. Qh2 f6 30. cxb6 Qxb6 31. Ba3 Nb4 32. Bxb4 axb4 33. Nc5 Ra5 34. Rh1 Rxc5 35. dxc5 Qxc5 36. Qg1 e5 37. Qc1 Qxe3 38. Bxd5+ cxd5 39. Rxe3 d4 40. Ree1 Bb7+ 41. Kh2 Rc8 42. Nc4 Ne6 43. fxe5 fxe5 44. Rhf1 Rc7 45. Qd2 e4 46. Qxb4 e3 47. Qd6 Bc8 48. Nb6 Rc2+ 49. Kg3 e2 50. Nxc8 exf1=N+ 51. Rxf1 Rc3+ 52. Rf3 Ng5 53. Qd5+ Kh7 54. Rxc3 1-0

[Event "European Amateur Chess-ch 2022"]
[Site "Zagreb"]
[Date "2022.08.14"]
[Round "1.24"]
[White "Jakovic, Roko"]
[Black "Okrosa, Marijan"]
[Result "1-0"]
[ECO "D31"]
[WhiteElo "1921"]
[BlackElo "2059"]
[Annotator "NA RC"]
[PlyCount "63"]
[EventDate "2022.08.14"]
[EventCountry "CRO"]
[SourceTitle "playchess.com"]
[Source "ChessBase"]
[SourceQuality "1"]
[TimeControl "40/5400+30:1800+30"]

1. d4 d5 2. c4 e6 3. Nc3 c6 4. Nf3 dxc4 5. a4 Bb4 6. e4 b5 7. Qc2 Bb7 8. Be2 a6 9. O-O Nf6 10. Bg5 Be7 11. e5 Nd5 12. Ne4 O-O 13. Bxe7 Qxe7 14. Nd6 Nb6 15. h4 h6 16. Nd2 f5 17. b3 cxb3 18. Nxb3 Nxa4 19. Rxa4 bxa4 20. Nc5 Bc8 21. Bc4 Kh8 22. Rb1 Qxh4 23. Bxe6 Qxd4 24. Nxc8 Qxe5 25. Ne7 Rf6 26. Qd3 Qc7 27. Rb7 Qa5 28. Qd6 Nd7 29. Rxd7 a3 30. Rb7 Rd8 31. Rb8 Rff8 32. Ng6+ 1-0

[Event "European Amateur Chess-ch 2022"]
[Site "Zagreb"]
[Date "2022.08.15"]
[Round "2.1"]
[White "Frouth, Nenad"]
[Black "Vrban, Mladen"]
[Result "0-1"]
[ECO "B01"]
[WhiteElo "2121"]
[BlackElo "2297"]
[Annotator "TA"]
[PlyCount "58"]
[EventDate "2022.08.14"]
[EventCountry "CRO"]
[SourceTitle "playchess.com"]
[Source "ChessBase"]
[SourceQuality "1"]
[TimeControl "40/5400+30:1800+30"]

{[%evp 9,58,30,59,-25,0,-29,-31,-27,130,29,48,-7,0,-26,0,0,7,-26,-29,-39,0,0,0,0,0,0,0,-139,-129,-154,-151,-234,-158,-175,-41,-54,-21,-187,-203,-262,-246,-242,-250,-271,-262,-719,-693,-2091,-1948,-1683,-1615]} 1. e4 d5 2. exd5 Qxd5 3. Nc3 Qd6 4. Bc4 Nf6 5. Nf3 a6 6. a4 {B01: Scandinavian Defence.} (6. O-O $14) 6... Nc6 {[#]} 7. Qe2 $146 ({Predecessor:} 7. h3 Bf5 8. O-O e6 9. d3 Be7 10. Re1 O-O-O 11. Ng5 Bg6 12. Nge4 Nxe4 13. Nxe4 {0-1 (90) Shubin,K (2429)-Ponkratov,P (2631) Chess.com INT 2020}) 7... Bg4 8. Ne4 {Black is slightly better.} Qf4 {[#]} (8... Nxe4 $11 9. Qxe4 f5) 9. Neg5 (9. d3 $6 Qf5 $11) (9. Bxf7+ $1 $16 {[%mdl 512]} Kxf7 10. Qc4+ Nd5 11. Qxd5+ e6 12. Qd7+ Kg8 13. d3) 9... e6 $11 10. d3 (10. d4 $1 $14 Qd6 11. c3) 10... Qd6 $1 11. Ne4 (11. h3 $5 {[%cal Rh3g4]} Bh5 12. Ne4 Nxe4 13. Qxe4 $11) 11... Qd8 {Hoping for ...Nd4.} 12. c3 {Against Nd4} Ne5 13. Nxf6+ (13. Ned2 $5 {[%cal Re2e5]} Nxc4 14. Nxc4 $11) 13... gxf6 14. Qe4 Bf5 (14... Bxf3 $5 15. gxf3 c6 $11) 15. Qxb7 {Strongly threatening Nxe5.} Rb8 $1 {[%cal Ba8b8,Bb8b6,Bb6d6,Bd6d7][%mdl 32]} 16. Qxa6 Rb6 $1 ({Don't take} 16... Nxd3+ 17. Bxd3 Qxd3 18. Qc6+ Kd8 19. Bf4 Qe4+ 20. Qxe4 Bxe4 21. a5 $16) 17. Qa5 ({Avoid the trap} 17. Bb5+ $2 c6 18. Qa7 cxb5 19. Nxe5 fxe5 $19) 17... Nxd3+ 18. Bxd3 (18. Ke2 $1 $11) 18... Bxd3 $17 {[%cal Bf5d3,Bd3e4,Be4f3,Bf3g4][%mdl 32]} 19. Qh5 {[#]} Rg8 $1 $36 {[%mdl 2048] Black is really pushing. Black is more active.} 20. a5 (20. Nd4 $17 {was called for.}) 20... Rd6 {aiming for ...Qa8.} 21. Be3 Rxg2 (21... Qb8 $19 22. b4 Rd5) 22. Nd4 $1 $15 {[%cal Oa5a6]} Qa8 (22... c5 $5 23. Qxc5 Rg4 $11) 23. Qf3 $2 {[#] Loses the game.} (23. O-O-O $11 Qa6 24. Rxd3 Qxd3 25. Qf3) 23... Be4 $1 $19 24. Qe2 ({Wrong is} 24. Qxf6 $2 Rg6 25. Qe5 Bxh1 $19) 24... c5 25. Nb5 {Black must now prevent Nc7+.} Rd7 {Against Nc7+. ...Bf3 is the strong threat.} 26. a6 Bf3 27. Qc4 (27. Qc2 Rg4 28. h3) 27... Rg4 {Black is clearly winning.} 28. Qxg4 Bxg4 {[%cal Ra8h1] A strong pair of Bishops.} 29. Rg1 Qf3 {Weighted Error Value: White=0.69/Black=0.28 (precise)} 0-1

[Event "European Amateur Chess-ch 2022"]
[Site "Zagreb"]
[Date "2022.08.15"]
[Round "2.2"]
[White "Karlusic, Luka"]
[Black "Novosel, Lovro"]
[Result "1-0"]
[ECO "E32"]
[WhiteElo "2089"]
[BlackElo "2212"]
[Annotator "TA"]
[PlyCount "71"]
[EventDate "2022.08.14"]
[EventCountry "CRO"]
[SourceTitle "playchess.com"]
[Source "ChessBase"]
[SourceQuality "1"]
[TimeControl "40/5400+30:1800+30"]

{[%evp 10,71,4,4,8,0,0,0,38,27,22,29,36,22,50,4,14,-25,50,42,34,59,80,0,0,0,0,0,0,-18,-21,-162,-157,-240,84,88,72,34,116,92,161,175,661,644,489,247,385,158,141,147,141,124,506,381,29958,29960,29993,29994,29994,29995,29995,29996,29996,29997]} 1. d4 Nf6 2. c4 e6 3. Nc3 Bb4 4. Qc2 O-O 5. e4 d6 6. a3 Bxc3+ {E32: Nimzo-Indian: Classical (4 Qc2): 4...0-0.} 7. bxc3 e5 8. Bd3 Re8 {The position is equal. 8...c5 is a critical line.} 9. Ne2 {[%cal Bg1e2,Be2g3,Bg3f5][%mdl 32]} Nc6 10. O-O h6 11. f4 Qe7 {[#]} 12. d5 $146 (12. fxe5 $14 {feels stronger.} dxe5 13. d5) ({Predecessor:} 12. fxe5 dxe5 13. d5 Na5 14. Ng3 Qc5+ 15. Kh1 Nh7 16. Qe2 Nb3 17. Be3 Qd6 18. Rab1 Nc5 19. Qf2 {1-0 (19) Holt,C (2553)-Solon,N (2306) Chess.com INT 2022}) 12... Nb8 $11 13. Ng3 Na6 (13... Nbd7 $11) 14. fxe5 $14 Qxe5 15. Bf4 Qe7 16. h3 {White is more active.} (16. e5 $1 $16 {[%cal Re5f6]} dxe5 17. Rae1) 16... Nc5 $11 17. Rae1 Nfd7 {Against e5} 18. Nf5 Qf8 19. Re3 {aiming for Rg3.} Ne5 20. Rg3 (20. Bxe5 $11 {and White has nothing to worry.} Rxe5 21. Nd4) 20... Bxf5 $19 (20... Ncxd3 21. Nxg7 Qxg7 22. Rxg7+ Kxg7 23. Be3 $15) 21. exf5 (21. Bxe5 $17 Rxe5 22. exf5) 21... Kh8 $2 ({Stronger than} 21... Nexd3 22. Bxh6 f6 23. Rd1) (21... Ncxd3 $19 22. Bxh6 f6 23. Rxg7+ Qxg7 24. Bxg7 Kxg7) 22. f6 $1 $36 {[%mdl 2048] Keeping Black busy.} g6 23. Qd2 Kh7 (23... Nexd3 $2 24. Bxh6 Qg8 25. Bg7+ (25. Rxd3 Qh7 $18) 25... Qxg7 26. fxg7+ $18) (23... Nb3 $1 $14 24. Qd1 Nxd3 25. Rxd3 Nc5) 24. Bc2 {A strong pair of Bishops.} Nxc4 (24... Ned7 $16) 25. Qd4 Ne5 (25... Nxa3 26. Bf5 b5) 26. h4 $18 {And now h5 would win.} h5 27. Rg5 (27. Qd1 $142 {White wants to mate with Qxh5+.} Kh8 28. Bxg6 $1 fxg6 29. Rxg6 $1) 27... Kh8 (27... Kg8 $142 28. Bxe5 Rxe5) 28. Bxe5 (28. Qd2 $18 {and the rest is easy.}) 28... Rxe5 $16 29. Rxe5 dxe5 30. Qxe5 {Hoping for Re1.} Rd8 $2 {[%mdl 8192]} (30... Re8 $16 31. Qxc7 Ne4) 31. Re1 Rd6 $2 {[#]} (31... Kg8 $18 32. Qg5 Re8) 32. Qg5 $1 {White mates.} Kh7 33. Qxh5+ Kg8 {[#]} 34. Bxg6 $1 {[%mdl 512]} fxg6 35. Qxg6+ Kh8 36. Re5 {Weighted Error Value: White=0.39/Black=1.00} 1-0

[Event "European Amateur Chess-ch 2022"]
[Site "Zagreb"]
[Date "2022.08.15"]
[Round "2.3"]
[White "Buchcar, Tomas"]
[Black "Vukic, Aleksandar"]
[Result "1-0"]
[ECO "A12"]
[WhiteElo "2208"]
[BlackElo "2073"]
[Annotator "TA"]
[PlyCount "63"]
[EventDate "2022.08.14"]
[EventCountry "CRO"]
[SourceTitle "playchess.com"]
[Source "ChessBase"]
[SourceQuality "1"]
[TimeControl "40/5400+30:1800+30"]

{[%evp 17,63,-12,0,-14,-8,-29,92,101,88,96,97,100,95,94,125,124,145,105,123,99,101,62,156,160,202,167,312,308,300,129,235,247,237,245,250,243,551,550,595,576,720,710,910,902,1114,1020,1154,1140]} 1. Nf3 Nf6 2. c4 c6 3. e3 d5 4. b3 Bg4 5. Be2 e6 6. O-O Bd6 7. Bb2 Nbd7 8. d3 Qe7 9. Nbd2 O-O 10. Re1 {A12: English Opening: 1...c6 with b3 by White.} e5 11. e4 {[#]} d4 $146 {[#]} (11... Bxf3 $11 {remains equal.} 12. Bxf3 d4) ({Predecessor:} 11... Bxf3 12. Bxf3 d4 13. a3 a5 14. g3 Nc5 15. Qc2 Ne6 16. Bg2 Nd7 17. Nf3 f6 {1-0 (40) Bassel,C (2079)-Berube,A (2143) Montreal 2017}) 12. Nxd4 $1 $16 {White is better.} Bxe2 13. Nxe2 Rad8 14. Qc2 Bb4 15. Red1 Nh5 16. a3 Bxd2 17. Rxd2 {[%cal Bd1d2,Bd2d4,Bd4d5,Bd5f5,Bf5h5][%mdl 32]} Qg5 18. Re1 Nc5 19. Bc1 Rd6 ({Black should play} 19... Nf4 $14 20. Nxf4 Qxf4) 20. d4 $1 Rg6 {[%csl Gg6][%cal Rg5g2]} 21. Ng3 exd4 (21... Nxg3 $142 22. hxg3 exd4) 22. Rxd4 $18 Qe5 23. Bb2 (23. Nf5 $18 {has better winning chances.}) 23... Nf4 (23... Qg5 $16) 24. b4 Nce6 {[#]} 25. Rd5 {[%mdl 512]} Qc7 {[#]} 26. Rf5 h5 $2 (26... Qe7 27. Rd1 Rd8) 27. Be5 {White is clearly winning.} Qe7 28. Bxf4 Nd4 {[#]} 29. Qc3 Rd8 (29... Nxf5 30. exf5) 30. Rxh5 {Black must now prevent Nf5.} Rg4 31. Be5 Rxg3 32. hxg3 {Weighted Error Value: White=0.17 (very precise) /Black=0.52} ({And not} 32. Qxg3 {[#]} Ne2+ $1 33. Kh1 Nxg3+ 34. hxg3 f6 $17) 1-0

[Event "European Amateur Chess-ch 2022"]
[Site "Zagreb"]
[Date "2022.08.15"]
[Round "2.4"]
[White "Vujec, Ivan"]
[Black "Jonsson, Gauti Pall"]
[Result "1/2-1/2"]
[ECO "B20"]
[WhiteElo "2192"]
[BlackElo "2071"]
[Annotator "TA"]
[PlyCount "119"]
[EventDate "2022.08.14"]
[EventCountry "CRO"]
[SourceTitle "playchess.com"]
[Source "ChessBase"]
[SourceQuality "1"]
[TimeControl "40/5400+30:1800+30"]

{[%evp 9,119,7,15,0,0,0,0,0,27,24,40,18,59,46,39,40,37,31,19,25,54,33,32,0,0,0,38,29,75,59,78,21,24,21,24,24,33,0,35,37,35,0,7,0,13,14,15,14,8,8,10,10,12,0,23,12,56,22,21,12,17,17,18,17,17,17,59,54,48,0,0,0,0,0,7,0,0,0,8,6,8,6,8,8,44,24,27,27,68,68,69,69,81,81,86,81,81,30,32,8,8,8,8,8,8,8,8,8,8,8,8,8]} 1. e4 c5 2. b3 Nc6 3. Bb2 e5 4. Bc4 d6 5. Nc3 Be7 6. d3 {B20: Sicilian: Unusual White 2nd moves.} Nf6 7. Nge2 O-O 8. O-O Kh8 9. f4 {[#]} exf4 $146 ({Predecessor:} 9... Ng4 10. Qd2 exf4 11. Nxf4 Bf6 12. h3 Bd4+ 13. Kh1 Qh4 14. Rf3 Nce5 15. Raf1 Nxf3 16. Rxf3 {0-1 (52) Tenold,A (1795)-Carlsson,L (2234) Gothenburg 2019}) 10. Nxf4 ({Reject} 10. Rxf4 Ng4 $11) 10... Ne5 (10... Ng4 {is more complex.} 11. Ncd5 Bg5 12. Qe1 Nge5) 11. Ncd5 (11. a4 {looks sharper.} Nh5 12. Nxh5 Bg4 13. Qd2) 11... Nxd5 12. Bxd5 Bf6 13. Kh1 Ng4 14. Bxf6 Qxf6 15. Qe1 {Against Qh4} g5 16. Ne2 Qe5 {[%csl Gg4][%cal Re5h2] [#]} 17. Qc3 Kg7 18. Qxe5+ dxe5 (18... Nxe5 $11 19. Ng3 Rb8) 19. Rf3 $16 {White is more active.} Nf6 20. Bc4 (20. Nc3 $16) 20... Bg4 $11 21. Rf2 Bxe2 22. Rxe2 a6 23. Rf1 Ne8 (23... b5 $5 {[%cal Rb5c4]} 24. Bd5 Nxd5 25. exd5 f6 $11) 24. Ref2 {[%cal Rf2f7]} f6 25. a3 Nc7 26. b4 b5 27. Bb3 cxb4 28. axb4 a5 29. bxa5 Rxa5 30. g3 Ra6 31. h4 h6 32. Kg2 Rfa8 33. d4 exd4 34. e5 {[%cal Re5f6]} Ne8 35. Rf5 Rd8 36. hxg5 hxg5 37. exf6+ Nxf6 38. Rxg5+ Kh6 39. Rgf5 (39. Rxb5 $14 {feels stronger.} d3 40. Rh1+ Kg6 41. Rb7) 39... Ng4 $1 {[#] ...Ne3+ is the strong threat.} 40. Rh1+ Kg6 41. Rxb5 Rf8 {Threatens to win with ...Ne3+.} 42. Rhh5 Ne3+ 43. Kh3 Ra1 {[%cal Ra1h1]} 44. Rbg5+ Kf6 {[%cal Ra1h1]} 45. g4 Rh1+ 46. Kg3 Rg1+ 47. Kf3 Nxg4 48. Rf5+ ({Don't play} 48. Rxg4 Ke7+ 49. Ke4 (49. Rf4 Rf1+ 50. Ke4 R8xf4+ 51. Ke5 Kd7 $17) 49... Rxg4+ 50. Ke5 Rg7 $15) 48... Kg6 49. Rxf8 {And now Rhh8 would win.} Kxh5 $14 {[%mdl 4096] Endgame KRB-KRN} 50. Ke4 Re1+ (50... Ne3 $2 51. Rh8+ Kg4 52. Rg8+ Kh4 53. Rxg1 $18) 51. Kxd4 Ne3 52. c3 Kg5 53. Rf3 ({Better is} 53. Bd5 $16) 53... Nf5+ $11 54. Kc5 Re3 $1 {The position is equal.} 55. Rxe3 Nxe3 56. Kd4 Kf4 57. Bd5 Nf5+ 58. Kc5 Ke5 59. Bg2 Ne3 60. Bf3 {Weighted Error Value: White=0.11 (very precise) /Black=0.09 (flawless)} 1/2-1/2

[Event "European Amateur Chess-ch 2022"]
[Site "Zagreb"]
[Date "2022.08.15"]
[Round "2.5"]
[White "Begic, Domagoj"]
[Black "Denic, Marin"]
[Result "1/2-1/2"]
[ECO "A06"]
[WhiteElo "2026"]
[BlackElo "2190"]
[Annotator "TA"]
[PlyCount "83"]
[EventDate "2022.08.14"]
[EventCountry "CRO"]
[SourceTitle "playchess.com"]
[Source "ChessBase"]
[SourceQuality "1"]
[TimeControl "40/5400+30:1800+30"]

{[%evp 9,83,-32,1,-23,-21,-33,-35,-26,-17,-37,-28,-47,-30,-40,-35,-43,-8,-26,-20,-20,-20,-23,-19,-31,-16,-20,-29,-35,-39,-24,0,0,0,-50,-6,-55,0,0,0,-34,0,0,0,0,6,4,5,5,15,28,19,16,23,18,18,18,71,11,10,13,52,8,16,0,0,0,0,0,0,0,0,0,0,0,0,0]} 1. Nf3 d5 2. d3 c5 3. c3 Nc6 4. Bf4 Nf6 5. h3 {[#]} h6 $146 ({Predecessor:} 5... e6 6. e3 Bd6 7. Bxd6 Qxd6 8. d4 O-O 9. Bd3 c4 10. Bc2 b5 11. Nbd2 b4 {1-0 (62) Simard,M-Ivanovs,A (1784) Tartu 2022}) 6. Qc2 {A06: Réti Opening: 1 Nf3 d5.} Bf5 7. Nbd2 e6 8. e4 {Black is slightly better.} Bh7 9. Be2 Be7 10. a3 Rc8 11. O-O O-O 12. Rfe1 Qb6 13. Rad1 c4 14. Be3 Bc5 15. Bxc5 Qxc5 16. Bf1 b5 17. Qc1 dxe4 18. Nxe4 Bxe4 19. dxe4 e5 20. Nh4 Rfd8 21. Re3 (21. Nf5 $11) 21... Ne7 22. Rd2 (22. Qc2 $11 {is superior.}) 22... g5 ({Black should try} 22... a5 $15) 23. Nf3 $11 Ng6 24. Qd1 Qc7 25. g3 Rxd2 26. Qxd2 Rd8 27. Qc2 a6 {[%cal Ba7a6,Ba6b5,Bb5b4][%mdl 32]} 28. a4 Nd7 29. axb5 axb5 30. b3 Nb6 31. bxc4 Nxc4 32. Rd3 Nd6 (32... Rd6 $11 {keeps the balance.}) 33. Rd5 ({White should play} 33. Qd1 $16) 33... b4 $1 34. c4 {[%cal Bc3c4,Bc4c5][%mdl 32]} Rc8 (34... Rb8 $5 {[%cal Rb4b3]}) 35. Qb1 Rb8 {The position is equal.} 36. c5 Nb5 37. Qxb4 Nd4 38. Qa3 Rb3 $1 39. Qa8+ Rb8 40. Qa3 {[#] Threatens to win with Bc4.} Rb3 $1 41. Qa8+ Rb8 42. Qa3 {Weighted Error Value: White=0.13 (very precise) /Black=0.13 (very precise)} 1/2-1/2

[Event "European Amateur Chess-ch 2022"]
[Site "Zagreb"]
[Date "2022.08.15"]
[Round "2.6"]
[White "Babic, Zvonko"]
[Black "Ruzic, Pia Marie"]
[Result "1-0"]
[ECO "A26"]
[WhiteElo "2180"]
[BlackElo "1996"]
[Annotator "TA"]
[PlyCount "105"]
[EventDate "2022.08.14"]
[EventCountry "CRO"]
[SourceTitle "playchess.com"]
[Source "ChessBase"]
[SourceQuality "1"]
[TimeControl "40/5400+30:1800+30"]

{[%evp 27,105,23,22,10,18,8,41,25,39,0,0,0,0,-63,-78,-71,0,0,-3,-75,-12,-23,-31,-28,-31,-44,0,-43,-48,-56,0,0,0,0,0,0,0,-56,-49,-47,735,720,694,717,672,287,275,201,229,210,270,-325,238,272,250,217,217,195,195,144,292,188,425,415,737,710,29968,6358,6358,6358,6358,6358,6358,6358,5704,5348,6358,6358,1418,828]} 1. c4 Nf6 2. Nf3 g6 3. g3 Bg7 4. Bg2 d6 5. O-O e5 6. d3 h6 7. Nc3 O-O 8. Rb1 a5 9. a3 {[%cal Ba2a3,Ba3b4,Bb4b5][%mdl 32]} Nc6 10. b4 axb4 11. axb4 Be6 12. b5 Ne7 13. Bb2 Qd7 14. Ra1 Bh3 15. Qb3 {A26: English Opening vs King's Indian with ...Nc6 and d3.} Bxg2 16. Kxg2 Nh5 17. h3 {White is slightly better.} Kh7 {[#]} 18. Na4 $146 ({Predecessor:} 18. Ra3 Rxa3 19. Qxa3 f5 20. Ra1 g5 21. Qa7 b6 22. Qb7 Nf6 23. Ra7 g4 24. hxg4 fxg4 {1-0 (42) Wrba,K (2430)-Rakay,K (2325) ICCF corr 1995}) 18... g5 19. c5 Ng6 {[%cal Og6f4] ( -> ...Ngf4+!)} 20. Rh1 ({White should try} 20. e3 $11) 20... d5 $15 21. Nc3 d4 (21... Rxa1 $17 22. Bxa1 c6) 22. Ne4 Rxa1 23. Bxa1 (23. Rxa1 $11 {remains equal.} g4 24. hxg4 Nhf4+ 25. gxf4 Qxg4+ 26. Kf1 (26. Ng3 exf4 27. Nh2 Nh4+ 28. Kh1 Qh3 $15)) 23... Qe7 (23... f5 $17 24. Ned2 Nf6) 24. Bb2 $11 f5 25. Ned2 Rd8 {Strongly threatening ...e4.} (25... Qxc5 $2 26. Ba3 Qc3 27. Bxf8 Qxb3 28. Nxb3 $18) 26. Qc4 Ra8 (26... c6 $5 {[%cal Rc6b5]}) 27. Bc1 c6 28. Nb3 Bf8 (28... Qd7 $15 29. bxc6 Qxc6) 29. h4 {[%cal Rh4g5]} cxb5 30. Qxb5 {[%cal Rh4g5]} g4 31. Ng5+ Kg7 (31... hxg5 32. hxg5 Kg8 33. c6 (33. Rxh5 Ra2 $11)) 32. Ne6+ Qxe6 $15 33. Qxb7+ Qf7 $2 {[%mdl 8192]} (33... Be7 $15 34. Qxa8 Qxb3) 34. Bxh6+ $1 $18 (34. Qxa8 Qxb3 35. c6 Qd5+ 36. Kh2 Bd6 $14) 34... Kg8 35. Qxa8 Qxb3 36. Qc6 (36. Ra1 $142) 36... Ne7 37. Qa6 {[%cal Oh1b1] Threatens to win with Rb1!} Qd5+ {[#]} 38. Kh2 $1 {And now Ra1 would win.} Qc6 39. Qa7 {[%mdl 8192] The board is on fire.} Bxh6 $4 {[%mdl 8192]} (39... Qxh6 $19 {avoids the disaster.} 40. Ra1 Qd2 41. Qa2+ Qxa2 42. Rxa2 Kf7) 40. Qxe7 Bf8 41. Qg5+ Ng7 42. Rc1 Kf7 43. Qd8 (43. h5 $18 {Black must now prevent h6.} Be7 44. Qg6+ Qxg6 45. hxg6+ Kxg6 46. c6) 43... Bxc5 (43... Ne6 $16 {was necessary.} 44. Qb6 Qc7) 44. Qb8 Qd5 (44... Qd6 {might work better.} 45. Qb7+ Kg6) 45. h5 Nxh5 (45... Ne6 $142 46. h6 Qd6 47. Qxd6 Bxd6) 46. Qb5 Nxg3 47. Kxg3 {KQR-KQB} f4+ {White is clearly winning.} 48. Kh2 g3+ 49. fxg3 Qa2 50. Qc4+ ({Inferior is} 50. Rxc5 Qxe2+ 51. Kh3 Qh5+ 52. Kg2 Qe2+ 53. Kh3 Qh5+ 54. Kg2 Qe2+ 55. Kh3 $11) 50... Qxc4 51. Rxc4 fxg3+ 52. Kxg3 Bd6 53. Kf3 {Weighted Error Value: White=0.58/Black=0.69} 1-0